bitfinex-derivatives/quotes_SOLF0:USTF0_20260208
["timestamp","ask_amount","ask_price","bid_price","bid_amount"]
[1770586938084,58.71446749,86.358,86.284,56.94445646]
[1770586938484,55.4988101,86.346,86.284,56.94445646]
[1770586939795,55.4988101,86.344,86.284,56.94445646]
[1770586941590,55.4988101,86.344,86.286,56.94445646]
[1770586942795,55.4988101,86.344,86.292,56.94445646]
[1770586943395,55.4988101,86.344,86.295,56.94445646]
[1770586944002,55.4988101,86.344,86.301,56.94445646]
[1770586944394,55.4988101,86.367,86.301,56.94445646]
[1770586944595,55.4988101,86.367,86.315,56.94445646]
[1770586945802,55.4988101,86.367,86.325,10.4327]
[1770586946301,55.4988101,86.367,86.325,67.37715646]
[1770586946497,20.8406,86.429,86.267,56.38400641]
[1770586946498,55.4988101,86.387,86.333,67.37615646]
[1770586946702,55.4988101,86.387,86.333,56.94445646]
[1770586946902,55.4988101,86.427,86.333,56.94445646]
[1770586947502,55.4988101,86.427,86.275,20.8775]
[1770586947503,55.4988101,86.421,86.344,56.94445646]
[1770586948197,55.4988101,86.421,86.357,10.4288]
[1770586948403,55.4988101,86.421,86.344,56.94445646]
[1770586949706,55.4988101,86.421,86.367,10.4276]
[1770586950301,55.4988101,86.421,86.367,67.37205646]
[1770586953302,55.4988101,86.421,86.354,67.37365646]
[1770586953503,55.4988101,86.421,86.306,56.94445646]
[1770586953707,55.4988101,86.421,86.315,56.94445646]
[1770586954502,55.4988101,86.421,86.365,56.94445646]
[1770586955806,55.4988101,86.421,86.368,56.94445646]
[1770586957605,55.4988101,86.421,86.369,67.37185646]
[1770586960708,55.4988101,86.421,86.343,56.94445646]
[1770586961506,55.4988101,86.408,86.343,56.94445646]
[1770586961712,55.4988101,86.408,86.297,56.94445646]
[1770586962611,55.4988101,86.396,86.327,10.4325]
[1770586962802,55.4988101,86.396,86.312,56.94445646]
[1770586963804,55.4988101,86.388,86.317,10.4337]
[1770586966111,55.4988101,86.388,86.317,64.10538021]
[1770586968917,57.41541349,86.385,86.317,64.10538021]
[1770586969611,57.41541349,86.382,86.317,64.10538021]
[1770586972118,57.41541349,86.38,86.317,53.67168021]
[1770586973719,57.41541349,86.377,86.317,53.67168021]
[1770586974817,57.41541349,86.374,86.317,53.67168021]
[1770586975216,10.4275,86.369,86.317,53.67168021]
[1770586975419,57.41541349,86.368,86.317,53.67168021]
[1770586975613,57.41541349,86.368,86.295,53.67168021]
[1770586976824,57.41541349,86.357,86.295,53.67168021]
[1770586977919,57.41541349,86.354,86.295,53.67168021]
[1770586978715,57.41541349,86.351,86.295,53.67168021]
[1770586982525,57.41541349,86.373,86.301,53.67168021]
[1770586983928,57.41541349,86.373,86.274,34.82]
[1770586983929,57.41541349,86.373,86.312,53.67168021]
[1770586984324,57.41541349,86.373,86.274,34.82]
[1770586984325,57.41541349,86.373,86.316,53.67168021]
[1770586985824,57.41541349,86.373,86.318,53.67168021]
[1770586986820,57.41541349,86.373,86.321,64.10478021]
[1770586995739,55.91509789,86.385,86.331,56.14802302]
[1770586996043,55.91509789,86.398,86.331,56.14802302]
[1770586996241,55.91509789,86.398,86.352,10.4294]
[1770586999545,55.91509789,86.398,86.352,66.57742302]
[1770587013050,55.91509789,86.426,86.364,56.14802302]
[1770587013350,55.91509789,86.424,86.364,56.14802302]
[1770587014852,55.91509789,86.424,86.366,56.14802302]
[1770587015846,55.91509789,86.424,86.376,66.57452302]
[1770587017148,55.91509789,86.424,86.389,10.425]
[1770587018658,55.91509789,86.437,86.39,56.14802302]
[1770587022264,55.91509789,86.437,86.376,56.14802302]
[1770587024764,55.91509789,86.437,86.379,56.14802302]
[1770587026357,55.91509789,86.437,86.333,34.82]
[1770587026358,55.91509789,86.437,86.368,10.4275]
[1770587027362,55.91509789,86.437,86.368,65.89169506]
[1770587027762,52.23798358,86.435,86.378,55.46419506]
[1770587029767,52.23798358,86.435,86.381,55.46419506]
[1770587030369,52.23798358,86.435,86.384,65.88979506]
[1770587040474,454.15177477,86.44,86.384,65.88979506]
[1770587040873,52.23798358,86.439,86.384,65.88979506]
[1770587042571,52.23798358,86.439,86.384,55.46419506]
[1770587045583,52.23798358,86.439,86.384,65.88979506]
[1770587048379,52.23798358,86.437,86.384,65.88979506]
[1770587049980,52.23798358,86.433,86.384,55.46419506]
[1770587050181,52.23798358,86.433,86.373,55.46419506]
[1770587051582,52.23798358,86.431,86.373,55.46419506]
[1770587055782,49.15792715,86.426,86.373,55.46419506]
[1770587056775,454.15177477,86.44,86.341,49.79023332]
[1770587056776,49.15792715,86.39,86.341,49.79023332]
[1770587056983,49.15792715,86.388,86.341,49.79023332]
[1770587057177,49.15792715,86.386,86.341,49.79023332]
[1770587057387,49.15792715,86.384,86.341,49.79023332]
[1770587062989,49.15792715,86.384,86.329,10.4322]
[1770587062990,49.15792715,86.384,86.329,49.79023332]
[1770587063295,49.15792715,86.384,86.316,49.79023332]
[1770587063494,49.15792715,86.382,86.316,49.79023332]
[1770587063690,49.15792715,86.372,86.316,49.79023332]
[1770587064692,10.4276,86.368,86.316,49.79023332]
[1770587064895,49.15792715,86.367,86.316,49.79023332]
[1770587065993,49.15792715,86.36,86.286,49.79023332]
[1770587066786,49.15792715,86.345,86.286,49.79023332]
[1770587067390,49.15792715,86.342,86.274,10.4388]
[1770587067595,49.15792715,86.342,86.274,49.79023332]
[1770587068599,49.15792715,86.334,86.262,49.79023332]
[1770587069593,49.15792715,86.328,86.262,49.79023332]
[1770587071097,49.15792715,86.322,86.262,49.79023332]
[1770587072697,49.15792715,86.319,86.262,49.79023332]
[1770587073499,10.4321,86.331,86.262,49.79023332]
[1770587073700,49.15792715,86.347,86.262,49.79023332]
[1770587074200,10.4295,86.353,86.276,49.79023332]
[1770587074904,49.15792715,86.361,86.291,49.79023332]
[1770587075704,447.85576751,86.368,86.293,49.79023332]
[1770587075896,49.15792715,86.374,86.293,49.79023332]
[1770587076702,49.15792715,86.374,86.296,49.79023332]
[1770587078004,49.15792715,86.374,86.302,49.79023332]
[1770587078806,49.15792715,86.374,86.305,49.79023332]
[1770587079198,49.15792715,86.374,86.306,10.435]
[1770587079404,49.15792715,86.374,86.307,49.79023332]
[1770587081705,49.15792715,86.374,86.309,49.79023332]
[1770587083303,49.15792715,86.374,86.35,0.46130715]
[1770587088309,46.76616935,86.397,86.36,3.43230706]
[1770587089710,46.76616935,86.395,86.36,3.43230706]
[1770587091019,46.76616935,86.384,86.35,3.43230706]
[1770587092016,10.4263,86.379,86.35,3.43230706]
[1770587092315,46.76616935,86.378,86.35,3.43230706]
[1770587094709,57.19266935,86.377,86.35,3.43230706]
[1770587096817,57.19266935,86.377,86.35,7.06e-06]
[1770587097018,57.19266935,86.377,86.35,1.25e-06]
[1770587098319,57.19266935,86.377,86.265,210.75]
[1770587098320,46.76616935,86.366,86.34,1.25e-06]
[1770587098720,46.76616935,86.366,86.33,3.43180125]
[1770587099716,10.429,86.357,86.33,3.43180125]
[1770587101221,57.19406935,86.366,86.33,3.43180125]
[1770587101825,46.76616935,86.378,86.35,3.43180125]
[1770587102525,46.76616935,86.39,86.35,3.43180125]
[1770587109632,46.76616935,86.417,86.381,45.92382356]
[1770587109834,46.76616935,86.417,86.39,3.43180125]
[1770587110235,46.76616935,86.431,86.39,3.43180125]
[1770587110628,46.76616935,86.428,86.39,3.43180125]
[1770587112141,46.76616935,86.428,86.4,3.43180125]
[1770587112536,46.76616935,86.44,86.41,3.43180125]
[1770587113338,57.18366935,86.452,86.42,3.43180125]
[1770587113537,46.76616935,86.478,86.43,3.43180125]
[1770587114834,46.76616935,86.475,86.43,3.43180125]
[1770587120547,46.76616935,86.475,86.426,45.52892456]
[1770587120742,46.76616935,86.475,86.42,3.43180125]
[1770587123145,46.76616935,86.475,86.43,3.43180125]
[1770587123343,44.46595866,86.472,86.395,45.52892456]
[1770587123550,44.46595866,86.449,86.39,3.43180125]
[1770587124151,44.46595866,86.445,86.4,3.43180125]
[1770587125854,10.4186,86.443,86.4,3.43180125]
[1770587126153,44.46595866,86.442,86.4,3.43180125]
[1770587126552,44.46595866,86.44,86.4,3.43180125]
[1770587126955,44.46595866,86.44,86.383,45.52892456]
[1770587126956,44.46595866,86.44,86.39,3.43180125]
[1770587127654,44.46595866,86.438,86.39,3.43180125]
[1770587128856,3.43180125,86.44,86.39,3.43180125]
[1770587128857,44.46595866,86.436,86.39,3.43180125]
[1770587131962,44.46595866,86.432,86.39,3.43180125]
[1770587132460,44.46595866,86.432,86.4,3.43180125]
[1770587133153,44.46595866,86.432,86.39,3.43180125]
[1770587133960,44.46595866,86.432,86.39,48.96072581]
[1770587134161,44.46595866,86.432,86.4,3.43180125]
[1770587134749,44.46595866,86.432,86.39,48.96072581]
[1770587136455,44.46595866,86.457,86.411,45.52892456]
[1770587137762,44.46595866,86.453,86.411,45.52892456]
[1770587138755,10.4178,86.45,86.411,45.52892456]
[1770587139660,44.46595866,86.453,86.42,3.43180125]
[1770587141465,44.46595866,86.453,86.43,3.43180125]
[1770587142262,44.46595866,86.453,86.411,45.52892456]
[1770587142263,44.46595866,86.453,86.42,3.43180125]
[1770587143564,54.88335866,86.453,86.41,3.43180125]
[1770587144069,44.46595866,86.449,86.4,3.43180125]
[1770587144266,44.46595866,86.449,86.39,48.96072581]
[1770587144471,14.28413154,86.505,86.244,649.7586]
[1770587144472,44.46595866,86.474,86.44,3.43180125]
[1770587144763,44.46595866,86.459,86.402,45.52892456]
[1770587145357,42.67486826,86.444,86.402,45.52892456]
[1770587145568,42.67486826,86.444,86.41,3.43180125]
[1770587145972,42.67486826,86.469,86.42,3.43180125]
[1770587146270,14.28413154,86.511,86.414,43.38190843]
[1770587146271,42.67486826,86.467,86.43,3.43180125]
[1770587147973,42.67486826,86.449,86.39,3.43180125]
[1770587148271,42.67486826,86.449,86.317,162.3023]
[1770587148272,42.67486826,86.439,86.38,3.43180125]
[1770587149062,42.67486826,86.429,86.38,3.43180125]
[1770587149265,42.67486826,86.409,86.36,3.43180125]
[1770587149765,42.67486826,86.409,86.36,46.81370968]
[1770587150167,42.67486826,86.409,86.37,3.43180125]
[1770587153965,42.67486826,86.409,86.371,43.38190843]
[1770587154274,42.67486826,86.438,86.4,3.43180125]
[1770587154475,42.67486826,86.436,86.4,3.43180125]
[1770587154773,42.67486826,86.459,86.41,3.43180125]
[1770587154977,42.67486826,86.457,86.41,3.43180125]
[1770587155166,42.67486826,86.455,86.41,3.43180125]
[1770587155370,42.67486826,86.453,86.41,3.43180125]
[1770587155676,42.67486826,86.451,86.41,3.43180125]
[1770587157172,42.67486826,86.451,86.378,43.38190843]
[1770587157376,42.67486826,86.439,86.38,3.43180125]
[1770587157573,42.67486826,86.437,86.38,3.43180125]
[1770587157873,42.67486826,86.435,86.38,3.43180125]
[1770587158576,42.67486826,86.433,86.38,3.43180125]
[1770587158772,42.67486826,86.431,86.38,3.43180125]
[1770587158967,42.67486826,86.431,86.378,43.38190843]
[1770587159871,42.67486826,86.431,86.341,21.42100932]
[1770587159872,42.67486826,86.431,86.381,43.38190843]
[1770587160077,42.67486826,86.448,86.381,43.38190843]
[1770587160776,10.67987869,86.471,86.38,9.18350658]
[1770587160777,42.67486826,86.446,86.388,43.38190843]
[1770587160969,14.28413154,86.477,86.388,43.38190843]
[1770587160970,42.67486826,86.444,86.388,43.38190843]
[1770587161169,42.67486826,86.442,86.388,43.38190843]
[1770587161878,42.67486826,86.44,86.388,43.38190843]
[1770587173091,10.4174,86.453,86.392,43.38190843]
[1770587173092,42.67486826,86.453,86.392,43.38190843]
[1770587173492,42.67486826,86.451,86.392,43.38190843]
[1770587173788,42.67486826,86.451,86.403,43.38190843]
[1770587174289,42.67486826,86.451,86.407,43.15639876]
[1770587174492,42.67486826,86.463,86.42,9.18350658]
[1770587174793,42.67486826,86.463,86.42,52.33990534]
[1770587176997,36.03640955,86.478,86.423,38.40143709]
[1770587177186,36.03640955,86.476,86.423,38.40143709]
[1770587178894,36.03640955,86.476,86.44,3.42419452]
[1770587179099,36.03640955,86.474,86.43,3.42419452]
[1770587179283,36.03640955,86.472,86.42,3.42419452]
[1770587180796,36.03640955,86.47,86.42,3.42419452]
[1770587181589,36.03640955,86.464,86.41,3.42419452]
[1770587181790,36.03640955,86.462,86.41,3.42419452]
[1770587181991,36.03640955,86.46,86.41,3.42419452]
[1770587182493,36.03640955,86.458,86.41,3.42419452]
[1770587184998,10.4169,86.457,86.41,3.42419452]
[1770587185193,36.03640955,86.456,86.41,3.42419452]
[1770587186797,36.03640955,86.454,86.41,3.42419452]
[1770587189291,36.03640955,86.454,86.41,41.00483693]
[1770587189491,36.03640955,86.454,27.25,6.76070348]
[1770587189492,10.4159,86.465,86.43,3.42419452]
[1770587189701,10.4159,86.465,86.371,34.75]
[1770587189702,36.03640955,86.471,86.44,3.42419452]
[1770587191999,36.03640955,86.471,86.45,3.42419452]
[1770587192702,36.03640955,86.471,86.44,3.42419452]
[1770587195808,36.03640955,86.471,86.431,37.58307026]
[1770587196698,36.03640955,86.471,86.44,3.42419452]
[1770587197101,36.03640955,86.483,86.44,38.36282139]
[1770587202809,36.03640955,86.483,86.45,3.42419452]
[1770587203910,36.03640955,86.489,86.451,33.38993186]
[1770587205407,36.03640955,86.489,86.46,3.42419452]
[1770587211618,36.03640955,86.489,86.451,33.38993186]
[1770587213518,36.03640955,86.489,86.46,3.42419452]
[1770587217718,36.03640955,86.489,86.451,33.38993186]
[1770587219021,36.03640955,86.489,86.46,3.42270871]
[1770587220928,36.03640955,86.489,86.45,3.42270871]
[1770587221222,36.03640955,86.489,86.44,3.42270871]
[1770587221627,32.6229194,86.473,86.42,3.42270871]
[1770587222217,32.6229194,86.499,86.45,3.42270871]
[1770587222420,32.6229194,86.497,86.45,3.42270871]
[1770587222625,32.6229194,86.495,86.45,3.42270871]
[1770587223026,32.6229194,86.495,86.46,3.42270871]
[1770587224231,32.6229194,86.516,86.47,3.42270871]
[1770587224529,32.6229194,86.516,86.471,29.08105821]
[1770587224728,32.6229194,86.516,86.48,3.42270871]
[1770587225328,32.6229194,86.516,86.48,32.06446476]
[1770587225718,32.6229194,86.516,86.48,3.42270871]
[1770587226319,32.6229194,86.538,86.49,31.88437785]
[1770587226928,32.6229194,86.538,86.5,3.42270871]
[1770587227125,32.6229194,86.55,86.52,3.42270871]
[1770587227722,32.6229194,86.55,86.51,3.42270871]
[1770587227927,36.04562811,86.55,86.5,3.42270871]
[1770587228122,32.6229194,86.55,86.5,3.42270871]
[1770587228731,32.6229194,86.539,86.47,31.79323253]
[1770587229029,3.42270871,86.54,86.407,20.8456]
[1770587229030,32.6229194,86.519,86.46,3.42270871]
[1770587230127,32.6229194,86.519,86.46,34.88189871]
[1770587230337,32.6229194,86.533,86.49,3.42270871]
[1770587230630,32.6229194,86.519,86.467,31.45919]
[1770587230829,32.6229194,86.519,86.47,3.42270871]
[1770587231029,32.6229194,86.519,86.48,3.42270871]
[1770587231535,32.6229194,86.539,86.5,3.42270871]
[1770587233430,32.6229194,86.559,86.51,3.42270871]
[1770587233638,32.6229194,86.557,86.51,3.42270871]
[1770587234739,32.6229194,86.539,86.481,10.4139]
[1770587236937,29.57845017,86.529,86.48,3.42270871]
[1770587237844,29.57845017,86.529,86.49,3.42270871]
[1770587246240,29.57845017,86.529,86.483,41.43043947]
[1770587247146,29.57845017,86.529,86.48,3.42270871]
[1770587248436,29.57845017,86.529,86.49,3.42270871]
[1770587250842,29.57845017,86.529,86.5,3.42270871]
[1770587251041,29.57845017,86.529,86.49,34.14488917]
[1770587252254,29.57845017,86.529,86.48,3.42270871]
[1770587252854,29.57845017,86.529,86.49,3.42270871]
[1770587263960,29.57845017,86.529,86.48,3.42270871]
[1770587264165,29.57845017,86.529,86.47,33.3709802]
[1770587264359,29.57845017,86.529,86.49,3.42270871]
[1770587265065,29.57845017,86.529,86.49,31.28989599]
[1770587265661,27.65160768,86.556,86.49,31.28989599]
[1770587265870,38.05840768,86.541,86.49,31.28989599]
[1770587266168,27.65160768,86.54,86.49,31.28989599]
[1770587266367,27.65160768,86.54,86.5,3.42270871]
[1770587267768,27.65160768,86.551,86.52,3.42270871]
[1770587268266,27.65160768,86.579,86.52,3.42270871]
[1770587268471,27.65160768,86.577,86.52,3.42270871]
[1770587268673,27.65160768,86.575,86.52,3.42270871]
[1770587268876,27.65160768,86.559,86.5,3.42270871]
[1770587269078,27.65160768,86.539,86.48,3.42270871]
[1770587269374,27.65160768,86.529,86.47,3.42270871]
[1770587269572,27.65160768,86.527,86.47,3.42270871]
[1770587270167,27.65160768,86.525,86.47,3.42270871]
[1770587270479,27.65160768,86.523,86.47,3.42270871]
[1770587270675,27.65160768,86.521,86.47,3.42270871]
[1770587271871,27.65160768,86.521,86.47,31.28989599]
[1770587274178,27.65160768,86.521,86.473,27.86718728]
[1770587274383,27.65160768,86.521,86.48,3.42270871]
[1770587274780,27.65160768,86.521,86.48,31.28989599]
[1770587277886,27.65160768,86.521,86.48,3.42270871]
[1770587278286,27.65160768,86.521,86.49,3.42270871]
[1770587278985,27.65160768,86.521,86.49,3.42005263]
[1770587280082,27.65160768,86.548,86.49,3.42005263]
[1770587280282,27.65160768,86.546,86.51,3.42005263]
[1770587280690,27.65160768,86.546,86.52,3.42005263]
[1770587280881,27.65160768,86.559,86.52,3.42005263]
[1770587281079,27.65160768,86.557,86.52,3.42005263]
[1770587281280,27.65160768,86.555,86.52,3.42005263]
[1770587281591,27.65160768,86.555,86.5,27.86718728]
[1770587281592,27.65160768,86.555,86.51,3.42005263]
[1770587282288,27.65160768,86.553,86.51,3.42005263]
[1770587282490,27.65160768,86.575,86.54,3.42005263]
[1770587282693,27.65160768,86.575,86.55,3.42005263]
[1770587283092,453.0036197,86.587,86.56,3.42005263]
[1770587283290,27.65160768,86.592,86.56,3.42005263]
[1770587283684,27.65160768,86.592,86.521,27.86718728]
[1770587283890,31.07166031,86.59,86.53,3.42005263]
[1770587284095,27.65160768,86.588,86.53,3.42005263]
[1770587284289,27.65160768,86.586,86.53,3.42005263]
[1770587284593,27.65160768,86.584,86.54,3.42005263]
[1770587284796,27.65160768,86.584,86.53,3.42005263]
[1770587284987,27.65160768,86.584,86.517,10.4095]
[1770587284988,27.65160768,86.579,86.52,31.28723991]
[1770587285184,27.65160768,86.579,86.53,3.42005263]
[1770587285692,27.65160768,86.579,86.55,3.42005263]
[1770587286791,27.65160768,86.579,86.54,3.42005263]
[1770587291091,27.65160768,86.579,86.52,27.86718728]
[1770587291092,27.65160768,86.579,86.52,3.42005263]
[1770587291300,27.65160768,86.569,86.52,3.42005263]
[1770587293298,27.65160768,86.569,86.53,3.42005263]
[1770587300107,27.65160768,86.569,86.52,3.42005263]
[1770587300308,27.65160768,86.569,86.51,3.42005263]
[1770587301008,27.65160768,86.569,86.52,3.42005263]
[1770587301908,27.65160768,86.569,86.522,10.409]
[1770587302810,27.65160768,86.569,86.53,30.86432383]
[1770587303105,27.65160768,86.569,86.483,34.75]
[1770587303106,10.4002,86.596,86.54,3.42005263]
[1770587303309,26.63826516,86.595,86.56,3.42005263]
[1770587303504,26.63826516,86.595,86.57,3.42005263]
[1770587303705,26.63826516,86.595,86.55,30.86432383]
[1770587303902,26.63826516,86.595,86.56,3.42005263]
[1770587304510,26.63826516,86.595,86.57,3.42005263]
[1770587304708,26.63826516,86.616,86.57,3.42005263]
[1770587306209,26.63826516,86.616,86.56,3.42005263]
[1770587307014,26.63826516,86.616,86.56,30.86432383]
[1770587307619,26.63826516,86.616,86.57,3.42005263]
[1770587308116,26.63826516,86.643,86.581,10.4019]
[1770587308418,26.63826516,86.629,86.57,30.86432383]
[1770587309009,26.63826516,86.629,86.571,10.4031]
[1770587309208,26.63826516,86.629,86.58,3.42005263]
[1770587310419,26.63826516,86.629,86.58,13.82195263]
[1770587310719,26.63826516,86.629,86.59,3.42005263]
[1770587311614,26.63826516,86.629,86.58,3.42005263]
[1770587313709,26.63826516,86.629,86.567,10.4036]
[1770587313710,26.63826516,86.629,86.581,27.4442712]
[1770587314026,26.63826516,86.629,86.59,3.42005263]
[1770587315126,26.63826516,86.629,86.57,3.42005263]
[1770587316815,26.63826516,86.627,86.57,3.42005263]
[1770587317823,26.63826516,86.618,86.56,3.42005263]
[1770587318128,26.63826516,86.609,86.55,3.42005263]
[1770587318423,26.63826516,86.609,86.55,30.86432383]
[1770587318623,26.63826516,86.609,86.56,3.42005263]
[1770587318826,26.63826516,86.604,86.56,3.42005263]
[1770587319419,26.63826516,86.604,86.57,3.42005263]
[1770587321427,26.63826516,86.604,86.56,30.86432383]
[1770587322528,26.63826516,86.637,86.59,3.42005263]
[1770587326930,3.42005263,86.63,86.58,3.42005263]
[1770587327130,26.99488047,86.629,86.573,25.44955316]
[1770587328526,26.99488047,86.619,86.565,10.4038]
[1770587329328,26.99488047,86.617,86.541,25.44955316]
[1770587329529,26.99488047,86.599,86.541,25.44955316]
[1770587329731,26.99488047,86.599,86.551,25.44955316]
[1770587330736,26.99488047,86.599,86.56,3.42005263]
[1770587331033,26.99488047,86.599,86.56,28.86960579]
[1770587332232,26.99488047,86.612,86.571,25.44955316]
[1770587332429,26.99488047,86.625,86.58,3.42005263]
[1770587332734,26.99488047,86.625,86.571,25.44955316]
[1770587334234,26.99488047,86.619,86.565,10.4037]
[1770587334432,26.99488047,86.609,86.55,3.42005263]
[1770587337241,26.99488047,86.599,86.55,3.42005263]
[1770587338640,26.99488047,86.599,86.55,28.86960579]
[1770587339333,26.99488047,86.599,86.56,28.86960579]
[1770587340145,26.99488047,86.612,86.56,28.86960579]
[1770587340939,26.99488047,86.612,86.56,28.86338179]
[1770587343850,26.99488047,86.599,86.532,25.44955316]
[1770587344051,26.99488047,86.599,86.551,25.44955316]
[1770587346755,26.99488047,86.599,86.552,10.4054]
[1770587349164,26.99488047,86.599,86.551,25.44955316]
[1770587350055,26.99488047,86.599,86.55,3.41382863]
[1770587355263,25.60116794,86.589,86.522,25.19437705]
[1770587355556,25.60116794,86.589,86.471,35.57887003]
[1770587355557,25.60116794,86.569,86.51,3.41382863]
[1770587355756,24.23246897,86.559,86.508,25.19437705]
[1770587355963,24.23246897,86.557,86.51,28.06466062]
[1770587356360,24.23246897,86.555,86.51,28.06466062]
[1770587356564,24.23246897,86.555,86.51,24.65083199]
[1770587357862,24.23246897,86.555,86.51,28.06466062]
[1770587359265,24.23246897,86.555,86.52,3.41382863]
[1770587362861,24.23246897,86.555,86.5,3.41382863]
[1770587363164,24.23246897,86.555,86.52,3.41382863]
[1770587363767,24.23246897,86.555,86.51,3.41382863]
[1770587366063,24.23246897,86.549,86.5,3.41382863]
[1770587369565,24.23246897,86.549,86.51,3.41382863]
[1770587371175,24.23246897,86.569,86.52,28.06466062]
[1770587373462,24.23246897,86.569,86.52,3.41382863]
[1770587375061,24.23246897,86.569,86.51,3.41382863]
[1770587375764,24.23246897,86.567,86.511,10.4102]
[1770587378374,24.23246897,86.559,86.5,3.41382863]
[1770587378672,24.23246897,86.539,86.48,3.41382863]
[1770587379669,24.23246897,86.519,86.46,3.41382863]
[1770587379874,24.23246897,86.519,86.471,24.65083199]
[1770587380071,6.897e-05,86.519,86.49,3.41382863]
[1770587380271,3.41382863,86.55,86.49,3.41382863]
[1770587381165,3.41382863,86.54,86.49,3.41382863]
[1770587382174,24.23246897,86.539,86.49,3.41382863]
[1770587385873,26.32811126,86.536,86.48,3.41382863]
[1770587386678,10.4078,86.533,86.48,3.41382863]
[1770587386882,26.32811126,86.532,86.48,3.41382863]
[1770587387979,26.32811126,86.529,86.48,3.41382863]
[1770587388575,26.32811126,86.527,86.47,3.41382863]
[1770587388771,26.32811126,86.519,86.47,3.41382863]
[1770587389783,26.32811126,86.517,86.47,3.41382863]
[1770587390075,26.32811126,86.517,86.46,3.41382863]
[1770587390276,3.41382863,86.52,86.46,3.41382863]
[1770587390277,26.32811126,86.506,86.46,3.41382863]
[1770587390981,10.4117,86.5,86.45,26.40147888]
[1770587391177,26.32811126,86.499,86.46,3.41382863]
[1770587392677,26.32811126,86.499,86.45,29.81530751]
[1770587393078,26.32811126,86.499,86.45,3.41382863]
[1770587393275,26.32811126,86.497,86.44,29.81530751]
[1770587393486,26.32811126,86.497,86.45,3.41382863]
[1770587394178,26.32811126,86.497,86.45,29.81530751]
[1770587394382,26.32811126,86.511,86.47,3.41382863]
[1770587394573,26.32811126,86.511,86.46,3.41382863]
[1770587395175,26.32811126,86.509,86.46,3.41382863]
[1770587395576,26.32811126,86.509,86.45,3.41382863]
[1770587395873,26.32811126,86.499,86.45,3.41382863]
[1770587397985,26.32811126,86.496,86.44,3.41382863]
[1770587398388,26.32811126,86.496,86.44,29.81530751]
[1770587400390,26.32811126,86.489,86.43,3.41382863]
[1770587401377,26.32811126,86.478,86.42,3.41382863]
[1770587401680,26.32811126,86.469,86.42,3.41382863]
[1770587401880,26.32811126,86.469,86.412,26.40147888]
[1770587402884,26.32811126,86.466,86.42,3.42581073]
[1770587403387,26.32811126,86.462,86.412,26.40147888]
[1770587403589,26.32811126,86.462,86.42,3.42581073]
[1770587404793,26.32811126,86.462,86.41,3.42581073]
[1770587405590,29.75392199,86.45,86.383,26.40147888]
[1770587405792,29.75392199,86.45,86.39,3.42581073]
[1770587405986,29.75392199,86.45,86.4,3.42581073]
[1770587406492,29.75392199,86.45,86.39,3.42581073]
[1770587406692,26.32811126,86.437,86.39,3.42581073]
[1770587407282,26.32811126,86.432,86.383,26.40147888]
[1770587407486,26.32811126,86.432,86.38,3.42581073]
[1770587407883,26.32811126,86.429,86.38,3.42581073]
[1770587408690,3.42581073,86.44,86.38,29.82728961]
[1770587408691,26.32811126,86.425,86.38,29.82728961]
[1770587409284,3.42581073,86.45,86.391,26.40147888]
[1770587409595,26.32811126,86.479,86.43,3.42581073]
[1770587409988,26.32811126,86.479,86.44,3.42581073]
[1770587410997,26.32811126,86.479,86.424,26.40147888]
[1770587411200,26.32811126,86.479,86.43,9.17257893]
[1770587411500,26.32811126,86.479,86.431,26.40147888]
[1770587411692,26.32811126,86.494,86.431,26.40147888]
[1770587412595,26.32811126,86.494,86.43,9.17257893]
[1770587412596,26.32811126,86.508,86.434,26.40147888]
[1770587413699,26.32811126,86.508,86.44,26.40147888]
[1770587414996,25.62875255,86.502,86.44,26.40147888]
[1770587415398,25.62875255,86.5,86.425,24.87310057]
[1770587416100,26.50677834,86.489,86.425,24.87310057]
[1770587416600,26.50677834,86.478,86.408,25.76640193]
[1770587417099,26.50677834,86.46,86.391,25.76640193]
[1770587418795,26.50677834,86.454,86.391,25.76640193]
[1770587419200,26.50677834,86.454,86.377,25.76640193]
[1770587419402,26.50677834,86.451,86.377,25.76640193]
[1770587420305,26.50677834,86.447,86.379,25.76640193]
[1770587421206,26.50677834,86.445,86.379,25.76640193]
[1770587422003,26.50677834,86.445,86.321,34.68]
[1770587422004,26.50677834,86.44,86.363,25.76640193]
[1770587422505,26.50677834,86.422,86.363,25.76640193]
[1770587422992,26.50677834,86.44,86.368,25.76640193]
[1770587423593,9.17257893,86.46,86.368,25.76640193]
[1770587423594,26.50677834,86.438,86.368,25.76640193]
[1770587423997,26.50677834,86.436,86.368,25.76640193]
[1770587424802,10.4202,86.429,86.368,25.76640193]
[1770587425002,26.50677834,86.428,86.368,25.76640193]
[1770587425406,9.17257893,86.44,86.35,25.76640193]
[1770587425407,26.50677834,86.413,86.35,25.76640193]
[1770587428102,26.50677834,86.413,86.353,25.76640193]
[1770587428308,10.4208,86.425,86.353,25.76640193]
[1770587429010,10.4194,86.436,86.356,25.76640193]
[1770587429211,10.4194,86.436,86.371,25.76640193]
[1770587430007,10.56438453,86.481,86.339,2.01420361]
[1770587430008,26.50677834,86.458,86.391,25.76640193]
[1770587431711,26.50677834,86.458,86.396,25.76640193]